[Event "Titled Tuesday Blitz November 29 Early 2022"]
[White "Fernandez De La Vara, Arnaldo"]
[Black "Odegov, Artem"]
[WhiteFideId "3518388"]
[BlackFideId "34183644"]
[WhiteElo "2387"]
[BlackElo "2298"]
[Result "0-1"]
[Round "10"]
[TimeControl "180+1"]
[Date "2022.11.30"]
[WhiteClock "0:00:01"]
[BlackClock "0:00:05"]

1. Nf3 {[%clk 0:03:00]}  d5 {[%clk 0:02:59]} 2. g3 {[%clk 0:03:01]}  c6 {[%clk 0:02:59]} 3. Bg2 {[%clk 0:03:01]}  Bf5 {[%clk 0:03:00]} 4. O-O {[%clk 0:03:01]}  Nf6 {[%clk 0:03:00]} 5. d3 {[%clk 0:03:02]}  h6 {[%clk 0:03:01]} 6. Nbd2 {[%clk 0:03:02]}  e6 {[%clk 0:03:01]} 7. Qe1 {[%clk 0:03:03]}  Bh7 {[%clk 0:03:00]} 8. e4 {[%clk 0:03:04]}  Be7 {[%clk 0:03:00]} 9. b3 {[%clk 0:03:04]}  O-O {[%clk 0:02:58]} 10. Bb2 {[%clk 0:03:04]}  Nbd7 {[%clk 0:02:59]} 11. Qe2 {[%clk 0:03:01]}  Qc7 {[%clk 0:02:56]} 12. Kh1 {[%clk 0:02:57]}  Rad8 {[%clk 0:02:54]} 13. Ne1 {[%clk 0:02:41]}  dxe4 {[%clk 0:02:22]} 14. dxe4 {[%clk 0:02:38]}  Nc5 {[%clk 0:02:22]} 15. f3 {[%clk 0:02:32]}  Qa5 {[%clk 0:02:21]} 16. Nc4 {[%clk 0:02:14]}  Qa6 {[%clk 0:02:12]} 17. Nd3 {[%clk 0:02:14]}  Nxd3 {[%clk 0:02:00]} 18. cxd3 {[%clk 0:02:15]}  Nd7 {[%clk 0:01:58]} 19. Rfd1 {[%clk 0:01:51]}  Bf6 {[%clk 0:01:51]} 20. Bxf6 {[%clk 0:01:42]}  Nxf6 {[%clk 0:01:52]} 21. d4 {[%clk 0:01:42]}  Rd7 {[%clk 0:01:47]} 22. Rd2 {[%clk 0:01:33]}  Rfd8 {[%clk 0:01:46]} 23. Rad1 {[%clk 0:01:33]}  Ne8 {[%clk 0:01:32]} 24. Qe3 {[%clk 0:01:19]}  f6 {[%clk 0:01:26]} 25. Bf1 {[%clk 0:01:12]}  b5 {[%clk 0:01:24]} 26. Nb2 {[%clk 0:01:02]}  Qxa2 {[%clk 0:01:04]} 27. Na4 {[%clk 0:00:56]}  Qa3 {[%clk 0:01:02]} 28. Nc5 {[%clk 0:00:56]}  Re7 {[%clk 0:01:00]} 29. Qc3 {[%clk 0:00:44]}  a5 {[%clk 0:00:47]} 30. Bh3 {[%clk 0:00:17]}  f5 {[%clk 0:00:33]} 31. Re1 {[%clk 0:00:14]}  Nd6 {[%clk 0:00:25]} 32. Rde2 {[%clk 0:00:07]}  Rde8 {[%clk 0:00:19]} 33. d5 {[%clk 0:00:03]}  exd5 {[%clk 0:00:11]} 34. e5 {[%clk 0:00:04]}  Nc4 {[%clk 0:00:11]} 35. Ra1 {[%clk 0:00:02]}  Qxc5 {[%clk 0:00:10]} 36. bxc4 {[%clk 0:00:01]}  dxc4 {[%clk 0:00:09]} 37. f4 {[%clk 0:00:01]}  Bg6 {[%clk 0:00:10]} 38. Bg2 {[%clk 0:00:01]}  Bf7 {[%clk 0:00:09]} 39. Rd2 {[%clk 0:00:01]}  Bd5 {[%clk 0:00:09]} 40. Rad1 {[%clk 0:00:02]}  Bxg2+ {[%clk 0:00:09]} 41. Kxg2 {[%clk 0:00:03]}  b4 {[%clk 0:00:08]} 42. Qc2 {[%clk 0:00:03]}  c3 {[%clk 0:00:08]} 43. Rd6 {[%clk 0:00:02]}  Qc4 {[%clk 0:00:08]} 44. Qxf5 {[%clk 0:00:02]}  c2 {[%clk 0:00:07]} 45. Rc1 {[%clk 0:00:02]}  b3 {[%clk 0:00:07]} 46. e6 {[%clk 0:00:02]}  b2 {[%clk 0:00:07]} 47. Rxc2 {[%clk 0:00:02]}  b1=Q {[%clk 0:00:06]} 48. Rdd2 {[%clk 0:00:02]}  Qcb5 {[%clk 0:00:05]} 49. Qe4 {[%clk 0:00:01]}  Q1b4 {[%clk 0:00:05]} 50. Qf3 {[%clk 0:00:01]}  Qb3 {[%clk 0:00:05]} 51. Rd3 {[%clk 0:00:01]}  Q3xd3 {[%clk 0:00:05]} 0-1


[Site "https://www.chess.com"]

[Event "Titled Tuesday Blitz November 29 Early 2022"]
[White "Fiedorek, Michal"]
[Black "Kuznetsova, Olga"]
[WhiteFideId "1199528"]
[BlackFideId "4191323"]
[WhiteElo "2201"]
[BlackElo "2134"]
[Result "0-1"]
[Round "10"]
[TimeControl "180+1"]
[Date "2022.11.30"]
[WhiteClock "0:00:07"]
[BlackClock "0:00:51"]

1. Nf3 {[%clk 0:03:00]}  d5 {[%clk 0:02:59]} 2. c4 {[%clk 0:02:59]}  e6 {[%clk 0:02:59]} 3. b3 {[%clk 0:02:57]}  a5 {[%clk 0:02:58]} 4. Bb2 {[%clk 0:02:52]}  a4 {[%clk 0:02:58]} 5. cxd5 {[%clk 0:02:47]}  exd5 {[%clk 0:02:58]} 6. bxa4 {[%clk 0:02:47]}  Nf6 {[%clk 0:02:58]} 7. e3 {[%clk 0:02:46]}  Bd6 {[%clk 0:02:57]} 8. Be2 {[%clk 0:02:46]}  O-O {[%clk 0:02:56]} 9. O-O {[%clk 0:02:46]}  Nc6 {[%clk 0:02:55]} 10. Nc3 {[%clk 0:02:46]}  Bg4 {[%clk 0:02:53]} 11. Nb5 {[%clk 0:02:40]}  Re8 {[%clk 0:02:46]} 12. h3 {[%clk 0:02:36]}  Bh5 {[%clk 0:02:44]} 13. Nfd4 {[%clk 0:02:29]}  Bxe2 {[%clk 0:02:42]} 14. Nxe2 {[%clk 0:02:29]}  Ne4 {[%clk 0:02:33]} 15. d3 {[%clk 0:02:22]}  Nc5 {[%clk 0:02:33]} 16. Nxd6 {[%clk 0:02:20]}  Qxd6 {[%clk 0:02:31]} 17. Nc3 {[%clk 0:02:19]}  Qg6 {[%clk 0:02:20]} 18. Nxd5 {[%clk 0:02:16]}  Nxa4 {[%clk 0:02:13]} 19. Qb3 {[%clk 0:02:10]}  Nxb2 {[%clk 0:02:10]} 20. Qxb2 {[%clk 0:02:11]}  Qd6 {[%clk 0:02:05]} 21. e4 {[%clk 0:02:07]}  Nd8 {[%clk 0:01:57]} 22. Rfd1 {[%clk 0:02:05]}  c6 {[%clk 0:01:56]} 23. Ne3 {[%clk 0:02:05]}  Qg6 {[%clk 0:01:48]} 24. a4 {[%clk 0:02:01]}  Re7 {[%clk 0:01:33]} 25. Qb4 {[%clk 0:01:55]}  Rd7 {[%clk 0:01:32]} 26. Nf5 {[%clk 0:01:51]}  Qf6 {[%clk 0:01:25]} 27. d4 {[%clk 0:01:43]}  Ne6 {[%clk 0:01:12]} 28. Ra3 {[%clk 0:01:17]}  Rad8 {[%clk 0:00:59]} 29. Rad3 {[%clk 0:01:13]}  c5 {[%clk 0:00:59]} 30. Qb5 {[%clk 0:01:07]}  cxd4 {[%clk 0:00:58]} 31. g3 {[%clk 0:00:39]}  g6 {[%clk 0:00:58]} 32. Nh6+ {[%clk 0:00:38]}  Kg7 {[%clk 0:00:58]} 33. Ng4 {[%clk 0:00:38]}  Qg5 {[%clk 0:00:58]} 34. f4 {[%clk 0:00:14]}  Qxb5 {[%clk 0:00:58]} 35. axb5 {[%clk 0:00:15]}  Nc5 {[%clk 0:00:59]} 36. Ra3 {[%clk 0:00:12]}  Nxe4 {[%clk 0:00:58]} 37. Ne5 {[%clk 0:00:12]}  Re7 {[%clk 0:00:58]} 38. Rad3 {[%clk 0:00:11]}  f6 {[%clk 0:00:55]} 39. Nc4 {[%clk 0:00:11]}  Red7 {[%clk 0:00:51]} 40. Nb6 {[%clk 0:00:11]}  Rd6 {[%clk 0:00:51]} 41. Nc4 {[%clk 0:00:11]}  Rd5 {[%clk 0:00:52]} 42. Ne3 {[%clk 0:00:07]}  dxe3 {[%clk 0:00:51]} 43. Rxd5 {[%clk 0:00:07]}  Rxd5 {[%clk 0:00:50]} 44. Rxd5 {[%clk 0:00:07]}  e2 {[%clk 0:00:51]} 0-1


[Site "https://www.chess.com"]

[Event "Titled Tuesday Blitz November 29 Early 2022"]
[White "Flis, Pawel"]
[Black "Grabinsky, Vladimir"]
[WhiteFideId "1112864"]
[BlackFideId "14107074"]
[WhiteElo "1817"]
[BlackElo "2198"]
[Result "0-1"]
[Round "10"]
[TimeControl "180+1"]
[Date "2022.11.30"]
[WhiteClock "0:00:04"]
[BlackClock "0:00:48"]

1. e4 {[%clk 0:02:56]}  c5 {[%clk 0:02:57]} 2. Nf3 {[%clk 0:02:54]}  Nc6 {[%clk 0:02:57]} 3. d4 {[%clk 0:02:54]}  cxd4 {[%clk 0:02:58]} 4. Nxd4 {[%clk 0:02:55]}  e5 {[%clk 0:02:58]} 5. Nb5 {[%clk 0:02:53]}  d6 {[%clk 0:02:59]} 6. c4 {[%clk 0:02:50]}  Be7 {[%clk 0:02:57]} 7. Be2 {[%clk 0:02:48]}  f5 {[%clk 0:02:55]} 8. exf5 {[%clk 0:02:43]}  Bxf5 {[%clk 0:02:55]} 9. Bg4 {[%clk 0:02:31]}  Bxg4 {[%clk 0:02:38]} 10. Qxg4 {[%clk 0:02:31]}  Nf6 {[%clk 0:02:39]} 11. Qe6 {[%clk 0:02:11]}  a6 {[%clk 0:02:31]} 12. N5c3 {[%clk 0:02:01]}  Nd4 {[%clk 0:02:32]} 13. Qh3 {[%clk 0:01:31]}  Nc2+ {[%clk 0:02:31]} 14. Ke2 {[%clk 0:01:29]}  Nxa1 {[%clk 0:02:32]} 15. Na3 {[%clk 0:01:26]}  Qb6 {[%clk 0:02:18]} 16. b3 {[%clk 0:01:07]}  Nxb3 {[%clk 0:01:55]} 17. axb3 {[%clk 0:01:06]}  Qxb3 {[%clk 0:01:55]} 18. Nab1 {[%clk 0:00:54]}  Qxc4+ {[%clk 0:01:48]} 19. Qd3 {[%clk 0:00:49]}  Rc8 {[%clk 0:01:43]} 20. Rd1 {[%clk 0:00:42]}  O-O {[%clk 0:01:37]} 21. Qxc4+ {[%clk 0:00:18]}  Rxc4 {[%clk 0:01:38]} 22. Kd3 {[%clk 0:00:17]}  d5 {[%clk 0:01:33]} 23. Nxd5 {[%clk 0:00:14]}  Rd4+ {[%clk 0:01:33]} 24. Ke2 {[%clk 0:00:12]}  Nxd5 {[%clk 0:01:31]} 25. Rxd4 {[%clk 0:00:12]}  exd4 {[%clk 0:01:32]} 26. Kd3 {[%clk 0:00:12]}  Rxf2 {[%clk 0:01:27]} 27. Kxd4 {[%clk 0:00:12]}  Nf4 {[%clk 0:01:16]} 28. Be3 {[%clk 0:00:11]}  Ne2+ {[%clk 0:00:59]} 29. Kd3 {[%clk 0:00:07]}  Rxg2 {[%clk 0:00:58]} 30. Nd2 {[%clk 0:00:05]}  Nc1+ {[%clk 0:00:52]} 31. Ke4 {[%clk 0:00:04]}  Rxh2 {[%clk 0:00:49]} 32. Nf3 {[%clk 0:00:04]}  Rc2 {[%clk 0:00:48]} 0-1


[Site "https://www.chess.com"]

[Event "Titled Tuesday Blitz November 29 Early 2022"]
[White "Gabrielian, Artur"]
[Black "Malka, Samuel"]
[WhiteFideId "4131002"]
[BlackFideId "20643675"]
[WhiteElo "2432"]
[BlackElo "2461"]
[Result "1-0"]
[Round "10"]
[TimeControl "180+1"]
[Date "2022.11.30"]
[WhiteClock "0:00:13"]
[BlackClock "0:00:03"]

1. d4 {[%clk 0:03:00]}  d5 {[%clk 0:02:59]} 2. c4 {[%clk 0:02:58]}  e6 {[%clk 0:02:59]} 3. Nc3 {[%clk 0:02:58]}  Nf6 {[%clk 0:03:00]} 4. cxd5 {[%clk 0:02:58]}  exd5 {[%clk 0:03:01]} 5. Bg5 {[%clk 0:02:58]}  c6 {[%clk 0:03:01]} 6. e3 {[%clk 0:02:58]}  h6 {[%clk 0:03:01]} 7. Bh4 {[%clk 0:02:57]}  Be7 {[%clk 0:03:01]} 8. Bd3 {[%clk 0:02:56]}  O-O {[%clk 0:03:01]} 9. Qc2 {[%clk 0:02:55]}  Re8 {[%clk 0:02:58]} 10. Nf3 {[%clk 0:02:53]}  Ne4 {[%clk 0:02:58]} 11. Bxe7 {[%clk 0:02:47]}  Qxe7 {[%clk 0:02:59]} 12. Bxe4 {[%clk 0:02:46]}  dxe4 {[%clk 0:03:00]} 13. Nd2 {[%clk 0:02:42]}  f5 {[%clk 0:03:00]} 14. h3 {[%clk 0:02:31]}  Be6 {[%clk 0:02:53]} 15. g4 {[%clk 0:02:30]}  Nd7 {[%clk 0:02:45]} 16. Rg1 {[%clk 0:02:27]}  Nf6 {[%clk 0:02:40]} 17. gxf5 {[%clk 0:02:25]}  Bxf5 {[%clk 0:02:40]} 18. O-O-O {[%clk 0:02:22]}  b5 {[%clk 0:02:36]} 19. Rg3 {[%clk 0:02:19]}  Kh8 {[%clk 0:02:27]} 20. Rdg1 {[%clk 0:02:00]}  Rg8 {[%clk 0:02:27]} 21. f3 {[%clk 0:01:04]}  Rae8 {[%clk 0:02:12]} 22. fxe4 {[%clk 0:00:56]}  Nxe4 {[%clk 0:02:13]} 23. Ndxe4 {[%clk 0:00:51]}  Bxe4 {[%clk 0:02:13]} 24. Nxe4 {[%clk 0:00:46]}  Qxe4 {[%clk 0:02:14]} 25. Qxe4 {[%clk 0:00:45]}  Rxe4 {[%clk 0:02:15]} 26. Kd2 {[%clk 0:00:45]}  g5 {[%clk 0:02:07]} 27. Rg4 {[%clk 0:00:41]}  Rge8 {[%clk 0:01:59]} 28. R1g3 {[%clk 0:00:21]}  Kg7 {[%clk 0:01:50]} 29. Kd3 {[%clk 0:00:20]}  Rxg4 {[%clk 0:01:45]} 30. hxg4 {[%clk 0:00:19]}  Rf8 {[%clk 0:01:36]} 31. e4 {[%clk 0:00:19]}  Rf2 {[%clk 0:01:34]} 32. e5 {[%clk 0:00:18]}  Kf7 {[%clk 0:01:24]} 33. Ke4 {[%clk 0:00:16]}  Rxb2 {[%clk 0:01:21]} 34. Rf3+ {[%clk 0:00:15]}  Ke7 {[%clk 0:01:21]} 35. Rf6 {[%clk 0:00:15]}  Re2+ {[%clk 0:01:16]} 36. Kf3 {[%clk 0:00:14]}  Rc2 {[%clk 0:00:59]} 37. Rxh6 {[%clk 0:00:13]}  a5 {[%clk 0:00:59]} 38. Ke4 {[%clk 0:00:13]}  Re2+ {[%clk 0:00:46]} 39. Kf5 {[%clk 0:00:13]}  Rf2+ {[%clk 0:00:40]} 40. Kxg5 {[%clk 0:00:13]}  Rd2 {[%clk 0:00:35]} 41. Rxc6 {[%clk 0:00:11]}  Rxd4 {[%clk 0:00:35]} 42. Kf5 {[%clk 0:00:12]}  Rd2 {[%clk 0:00:28]} 43. Rc7+ {[%clk 0:00:12]}  Kd8 {[%clk 0:00:15]} 44. Rb7 {[%clk 0:00:12]}  b4 {[%clk 0:00:14]} 45. g5 {[%clk 0:00:12]}  Rxa2 {[%clk 0:00:13]} 46. g6 {[%clk 0:00:13]}  Rf2+ {[%clk 0:00:14]} 47. Ke6 {[%clk 0:00:13]}  Rg2 {[%clk 0:00:13]} 48. g7 {[%clk 0:00:13]}  b3 {[%clk 0:00:10]} 49. Rb8+ {[%clk 0:00:13]}  Kc7 {[%clk 0:00:11]} 50. g8=Q {[%clk 0:00:13]}  Rxg8 {[%clk 0:00:11]} 51. Rxg8 {[%clk 0:00:14]}  b2 {[%clk 0:00:10]} 52. Rg1 {[%clk 0:00:13]}  a4 {[%clk 0:00:10]} 53. Kd5 {[%clk 0:00:11]}  a3 {[%clk 0:00:10]} 54. Rg7+ {[%clk 0:00:11]}  Kc8 {[%clk 0:00:05]} 55. Rg8+ {[%clk 0:00:11]}  Kc7 {[%clk 0:00:05]} 56. Rg7+ {[%clk 0:00:12]}  Kc8 {[%clk 0:00:06]} 57. Kc6 {[%clk 0:00:12]}  Kd8 {[%clk 0:00:05]} 58. Kd6 {[%clk 0:00:12]}  Ke8 {[%clk 0:00:03]} 59. e6 {[%clk 0:00:13]}  Kf8 {[%clk 0:00:03]} 60. Rf7+ {[%clk 0:00:13]} 1-0


[Site "https://www.chess.com"]

[Event "Titled Tuesday Blitz November 29 Early 2022"]
[White "Gjestemoen-VonHirsch, Andre"]
[Black "Von Buelow, Georg"]
[WhiteFideId "1539531"]
[BlackFideId "4620658"]
[WhiteElo "2198"]
[BlackElo "2220"]
[Result "0-1"]
[Round "10"]
[TimeControl "180+1"]
[Date "2022.11.30"]
[WhiteClock "0:00:02"]
[BlackClock "0:00:14"]

1. b3 {[%clk 0:02:53]}  d5 {[%clk 0:02:57]} 2. Bb2 {[%clk 0:02:54]}  Bg4 {[%clk 0:02:56]} 3. Nf3 {[%clk 0:02:53]}  Bxf3 {[%clk 0:02:56]} 4. exf3 {[%clk 0:02:54]}  e6 {[%clk 0:02:57]} 5. d3 {[%clk 0:02:53]}  Nf6 {[%clk 0:02:57]} 6. Nd2 {[%clk 0:02:53]}  c6 {[%clk 0:02:56]} 7. g3 {[%clk 0:02:53]}  Nbd7 {[%clk 0:02:56]} 8. f4 {[%clk 0:02:53]}  Bb4 {[%clk 0:02:53]} 9. a3 {[%clk 0:02:52]}  Bc5 {[%clk 0:02:52]} 10. Qe2 {[%clk 0:02:50]}  O-O {[%clk 0:02:51]} 11. Bg2 {[%clk 0:02:38]}  Re8 {[%clk 0:02:50]} 12. d4 {[%clk 0:02:36]}  Bd6 {[%clk 0:02:49]} 13. O-O {[%clk 0:02:35]}  b5 {[%clk 0:02:49]} 14. Rae1 {[%clk 0:02:34]}  Qe7 {[%clk 0:02:45]} 15. b4 {[%clk 0:02:27]}  a5 {[%clk 0:02:39]} 16. c3 {[%clk 0:02:27]}  axb4 {[%clk 0:02:34]} 17. axb4 {[%clk 0:02:26]}  Nb6 {[%clk 0:02:33]} 18. Qd3 {[%clk 0:02:10]}  g6 {[%clk 0:02:23]} 19. Bh3 {[%clk 0:02:02]}  Qc7 {[%clk 0:02:20]} 20. Re2 {[%clk 0:01:57]}  Ra2 {[%clk 0:02:17]} 21. Qb1 {[%clk 0:01:53]}  Rea8 {[%clk 0:02:15]} 22. Rfe1 {[%clk 0:01:52]}  Nc4 {[%clk 0:01:49]} 23. Nxc4 {[%clk 0:01:51]}  bxc4 {[%clk 0:01:47]} 24. Qc1 {[%clk 0:01:05]}  Qa7 {[%clk 0:01:44]} 25. f5 {[%clk 0:00:55]}  exf5 {[%clk 0:01:32]} 26. Bxf5 {[%clk 0:00:50]}  Bf8 {[%clk 0:00:58]} 27. Bb1 {[%clk 0:00:49]}  Ra6 {[%clk 0:00:55]} 28. Qg5 {[%clk 0:00:49]}  Bg7 {[%clk 0:00:56]} 29. h4 {[%clk 0:00:43]}  Rf8 {[%clk 0:00:51]} 30. Bc1 {[%clk 0:00:42]}  Qa8 {[%clk 0:00:44]} 31. Bf4 {[%clk 0:00:41]}  h6 {[%clk 0:00:40]} 32. Qe5 {[%clk 0:00:34]}  Ne4 {[%clk 0:00:40]} 33. Rxe4 {[%clk 0:00:16]}  Bxe5 {[%clk 0:00:38]} 34. Rxe5 {[%clk 0:00:17]}  h5 {[%clk 0:00:24]} 35. Bh6 {[%clk 0:00:14]}  Rc8 {[%clk 0:00:21]} 36. g4 {[%clk 0:00:10]}  hxg4 {[%clk 0:00:21]} 37. h5 {[%clk 0:00:08]}  Kh7 {[%clk 0:00:21]} 38. Bc1 {[%clk 0:00:07]}  Ra7 {[%clk 0:00:19]} 39. hxg6+ {[%clk 0:00:07]}  fxg6 {[%clk 0:00:20]} 40. Rg5 {[%clk 0:00:07]}  Rg8 {[%clk 0:00:19]} 41. Kg2 {[%clk 0:00:05]}  Kg7 {[%clk 0:00:18]} 42. Rxg6+ {[%clk 0:00:05]}  Kf7 {[%clk 0:00:18]} 43. Rd6 {[%clk 0:00:03]}  Qb8 {[%clk 0:00:17]} 44. Rh6 {[%clk 0:00:02]}  Rg7 {[%clk 0:00:17]} 45. Bg6+ {[%clk 0:00:01]}  Kf8 {[%clk 0:00:15]} 46. Rh7 {[%clk 0:00:01]}  Rxh7 {[%clk 0:00:15]} 47. Bxh7 {[%clk 0:00:02]}  Rxh7 {[%clk 0:00:14]} 0-1


[Site "https://www.chess.com"]

[Event "Titled Tuesday Blitz November 29 Early 2022"]
[White "Gonzalez, Francisco Silva"]
[Black "Vasques, Antonio Pedro Freixial"]
[WhiteFideId "1512285"]
[BlackFideId "1908332"]
[WhiteElo "2159"]
[BlackElo "2243"]
[Result "0-1"]
[Round "10"]
[TimeControl "180+1"]
[Date "2022.11.30"]
[WhiteClock "0:00:21"]
[BlackClock "0:00:13"]

1. d4 {[%clk 0:02:55]}  Nf6 {[%clk 0:02:58]} 2. c4 {[%clk 0:02:54]}  e6 {[%clk 0:02:56]} 3. Nc3 {[%clk 0:02:54]}  Bb4 {[%clk 0:02:54]} 4. a3 {[%clk 0:02:54]}  Bxc3+ {[%clk 0:02:53]} 5. bxc3 {[%clk 0:02:55]}  b6 {[%clk 0:02:51]} 6. e3 {[%clk 0:02:55]}  Bb7 {[%clk 0:02:51]} 7. f3 {[%clk 0:02:55]}  c5 {[%clk 0:02:48]} 8. Bd3 {[%clk 0:02:54]}  Nc6 {[%clk 0:02:47]} 9. Ne2 {[%clk 0:02:53]}  O-O {[%clk 0:02:45]} 10. e4 {[%clk 0:02:53]}  h6 {[%clk 0:02:34]} 11. Be3 {[%clk 0:02:53]}  d6 {[%clk 0:02:33]} 12. Ng3 {[%clk 0:02:52]}  Rc8 {[%clk 0:02:27]} 13. O-O {[%clk 0:02:49]}  Na5 {[%clk 0:02:10]} 14. d5 {[%clk 0:02:48]}  Ba6 {[%clk 0:02:10]} 15. Qe2 {[%clk 0:02:48]}  Re8 {[%clk 0:02:05]} 16. a4 {[%clk 0:02:46]}  Qe7 {[%clk 0:01:59]} 17. Rfe1 {[%clk 0:02:45]}  Nd7 {[%clk 0:01:58]} 18. f4 {[%clk 0:02:45]}  Qf6 {[%clk 0:01:36]} 19. Nh5 {[%clk 0:02:43]}  Qxc3 {[%clk 0:01:30]} 20. Rec1 {[%clk 0:02:33]}  Qb3 {[%clk 0:01:14]} 21. Rcb1 {[%clk 0:02:23]}  Qc3 {[%clk 0:01:11]} 22. Rc1 {[%clk 0:02:20]}  Qb3 {[%clk 0:01:10]} 23. Rab1 {[%clk 0:02:10]}  Qxa4 {[%clk 0:01:08]} 24. Ra1 {[%clk 0:02:10]}  Qb4 {[%clk 0:01:06]} 25. Bd2 {[%clk 0:02:02]}  Qb2 {[%clk 0:01:04]} 26. Rab1 {[%clk 0:01:51]}  Qa3 {[%clk 0:00:47]} 27. Rc3 {[%clk 0:01:48]}  Qa2 {[%clk 0:00:45]} 28. Rbc1 {[%clk 0:01:33]}  exd5 {[%clk 0:00:43]} 29. cxd5 {[%clk 0:01:26]}  Bxd3 {[%clk 0:00:41]} 30. Qxd3 {[%clk 0:01:26]}  Qa4 {[%clk 0:00:40]} 31. Re1 {[%clk 0:01:15]}  Qd4+ {[%clk 0:00:37]} 32. Kf1 {[%clk 0:01:10]}  b5 {[%clk 0:00:24]} 33. Qg3 {[%clk 0:01:06]}  Nc4 {[%clk 0:00:20]} 34. Rd3 {[%clk 0:01:02]}  g6 {[%clk 0:00:12]} 35. Rxd4 {[%clk 0:01:01]}  cxd4 {[%clk 0:00:13]} 36. Bc1 {[%clk 0:00:49]}  Kh7 {[%clk 0:00:13]} 37. Qg4 {[%clk 0:00:48]}  Rc7 {[%clk 0:00:09]} 38. Ng3 {[%clk 0:00:37]}  d3 {[%clk 0:00:10]} 39. Qd1 {[%clk 0:00:35]}  Nc5 {[%clk 0:00:09]} 40. Bd2 {[%clk 0:00:32]}  a5 {[%clk 0:00:06]} 41. f5 {[%clk 0:00:29]}  a4 {[%clk 0:00:06]} 42. Bb4 {[%clk 0:00:27]}  a3 {[%clk 0:00:01]} 43. Bxc5 {[%clk 0:00:25]}  d2 {[%clk 0:00:02]} 44. Bb4 {[%clk 0:00:23]}  dxe1=Q+ {[%clk 0:00:03]} 45. Bxe1 {[%clk 0:00:22]}  Ne3+ {[%clk 0:00:03]} 46. Ke2 {[%clk 0:00:23]}  Nxd1 {[%clk 0:00:03]} 47. Bc3 {[%clk 0:00:19]}  a2 {[%clk 0:00:04]} 48. Bd4 {[%clk 0:00:18]}  Rc2+ {[%clk 0:00:04]} 49. Kxd1 {[%clk 0:00:18]}  Rxg2 {[%clk 0:00:05]} 50. fxg6+ {[%clk 0:00:16]}  Kxg6 {[%clk 0:00:05]} 51. e5 {[%clk 0:00:17]}  Rxg3 {[%clk 0:00:05]} 52. e6 {[%clk 0:00:16]}  fxe6 {[%clk 0:00:05]} 53. hxg3 {[%clk 0:00:17]}  exd5 {[%clk 0:00:05]} 54. Kc2 {[%clk 0:00:17]}  Re4 {[%clk 0:00:06]} 55. Bc3 {[%clk 0:00:16]}  Rc4 {[%clk 0:00:06]} 56. Kb2 {[%clk 0:00:16]}  Rxc3 {[%clk 0:00:07]} 57. Kxa2 {[%clk 0:00:17]}  Rxg3 {[%clk 0:00:07]} 58. Kb2 {[%clk 0:00:17]}  h5 {[%clk 0:00:08]} 59. Kc2 {[%clk 0:00:18]}  h4 {[%clk 0:00:09]} 60. Kd2 {[%clk 0:00:18]}  Kg5 {[%clk 0:00:10]} 61. Ke2 {[%clk 0:00:19]}  Kg4 {[%clk 0:00:11]} 62. Kf2 {[%clk 0:00:20]}  h3 {[%clk 0:00:12]} 63. Kf1 {[%clk 0:00:21]}  h2 {[%clk 0:00:13]} 64. Kf2 {[%clk 0:00:21]}  h1=Q {[%clk 0:00:13]} 0-1


[Site "https://www.chess.com"]

[Event "Titled Tuesday Blitz November 29 Early 2022"]
[White "Havas, Ladislav"]
[Black "Shapiro, Daniel"]
[WhiteFideId "14501090"]
[BlackFideId "2001780"]
[WhiteElo "2199"]
[BlackElo "2315"]
[Result "1-0"]
[Round "10"]
[TimeControl "180+1"]
[Date "2022.11.30"]
[WhiteClock "0:01:23"]
[BlackClock "0:00:14"]

1. d4 {[%clk 0:03:00]}  Nf6 {[%clk 0:02:59]} 2. Bg5 {[%clk 0:03:01]}  Ne4 {[%clk 0:02:52]} 3. h4 {[%clk 0:03:00]}  c5 {[%clk 0:02:50]} 4. dxc5 {[%clk 0:02:59]}  Qa5+ {[%clk 0:02:45]} 5. Nd2 {[%clk 0:03:00]}  Nxg5 {[%clk 0:02:36]} 6. hxg5 {[%clk 0:03:00]}  Qxc5 {[%clk 0:02:34]} 7. g6 {[%clk 0:03:00]}  fxg6 {[%clk 0:02:30]} 8. e3 {[%clk 0:03:00]}  e6 {[%clk 0:02:19]} 9. Bd3 {[%clk 0:02:58]}  Qg5 {[%clk 0:01:53]} 10. Ngf3 {[%clk 0:02:58]}  Qxg2 {[%clk 0:01:50]} 11. Rh2 {[%clk 0:02:52]}  Qg4 {[%clk 0:01:48]} 12. Rh4 {[%clk 0:02:51]}  Qxh4 {[%clk 0:01:27]} 13. Nxh4 {[%clk 0:02:50]}  Be7 {[%clk 0:01:28]} 14. Qg4 {[%clk 0:02:45]}  Nc6 {[%clk 0:01:27]} 15. O-O-O {[%clk 0:02:36]}  d5 {[%clk 0:01:26]} 16. Rh1 {[%clk 0:02:30]}  e5 {[%clk 0:01:18]} 17. Qg2 {[%clk 0:02:30]}  e4 {[%clk 0:01:12]} 18. Bb5 {[%clk 0:02:28]}  O-O {[%clk 0:01:03]} 19. a3 {[%clk 0:02:15]}  g5 {[%clk 0:01:03]} 20. Nxe4 {[%clk 0:02:02]}  gxh4 {[%clk 0:00:55]} 21. Ng5 {[%clk 0:02:00]}  Rf5 {[%clk 0:00:47]} 22. Nf3 {[%clk 0:01:39]}  Bd7 {[%clk 0:00:33]} 23. Bxc6 {[%clk 0:01:38]}  bxc6 {[%clk 0:00:30]} 24. Nd4 {[%clk 0:01:38]}  Rg5 {[%clk 0:00:19]} 25. Qf1 {[%clk 0:01:34]}  h3 {[%clk 0:00:19]} 26. Rxh3 {[%clk 0:01:32]}  Bxh3 {[%clk 0:00:18]} 27. Qxh3 {[%clk 0:01:32]}  Bf6 {[%clk 0:00:17]} 28. Qe6+ {[%clk 0:01:26]}  Kh8 {[%clk 0:00:18]} 29. Qxc6 {[%clk 0:01:26]}  Rf8 {[%clk 0:00:16]} 30. Ne6 {[%clk 0:01:26]}  Rg1+ {[%clk 0:00:15]} 31. Kd2 {[%clk 0:01:26]}  Rg8 {[%clk 0:00:15]} 32. Qxd5 {[%clk 0:01:24]}  h5 {[%clk 0:00:14]} 33. Qxh5# {[%clk 0:01:23]} 1-0


[Site "https://www.chess.com"]

[Event "Titled Tuesday Blitz November 29 Early 2022"]
[White "Herman, Daniel"]
[Black "Ciuffoletti, Paolo"]
[WhiteFideId "30935008"]
[BlackFideId "807630"]
[WhiteElo "1897"]
[BlackElo "2143"]
[Result "1-0"]
[Round "10"]
[TimeControl "180+1"]
[Date "2022.11.30"]
[WhiteClock "0:00:29"]
[BlackClock "0:00:03"]

1. Nf3 {[%clk 0:03:00]}  d5 {[%clk 0:02:55]} 2. c4 {[%clk 0:03:00]}  c6 {[%clk 0:02:53]} 3. e3 {[%clk 0:02:59]}  Nf6 {[%clk 0:02:53]} 4. Nc3 {[%clk 0:02:54]}  g6 {[%clk 0:02:52]} 5. d4 {[%clk 0:02:52]}  Bg7 {[%clk 0:02:49]} 6. Be2 {[%clk 0:02:52]}  O-O {[%clk 0:02:48]} 7. O-O {[%clk 0:02:53]}  dxc4 {[%clk 0:02:35]} 8. Bxc4 {[%clk 0:02:54]}  b5 {[%clk 0:02:35]} 9. Bb3 {[%clk 0:02:48]}  Bb7 {[%clk 0:02:17]} 10. Qe2 {[%clk 0:02:34]}  Nbd7 {[%clk 0:02:04]} 11. e4 {[%clk 0:02:24]}  Nb6 {[%clk 0:01:39]} 12. Rd1 {[%clk 0:02:07]}  b4 {[%clk 0:01:29]} 13. Na4 {[%clk 0:02:07]}  Nxa4 {[%clk 0:01:24]} 14. Bxa4 {[%clk 0:02:07]}  Qa5 {[%clk 0:01:22]} 15. Bb3 {[%clk 0:01:57]}  Rac8 {[%clk 0:01:00]} 16. Bg5 {[%clk 0:01:31]}  h6 {[%clk 0:00:36]} 17. Bh4 {[%clk 0:01:23]}  g5 {[%clk 0:00:35]} 18. Bg3 {[%clk 0:01:23]}  Nh5 {[%clk 0:00:32]} 19. e5 {[%clk 0:01:02]}  c5 {[%clk 0:00:23]} 20. d5 {[%clk 0:00:56]}  Ba6 {[%clk 0:00:19]} 21. Qe4 {[%clk 0:00:53]}  Nxg3 {[%clk 0:00:08]} 22. hxg3 {[%clk 0:00:54]}  f5 {[%clk 0:00:05]} 23. exf6 {[%clk 0:00:48]}  exf6 {[%clk 0:00:05]} 24. d6+ {[%clk 0:00:47]}  Kh8 {[%clk 0:00:04]} 25. Qg6 {[%clk 0:00:34]}  f5 {[%clk 0:00:03]} 26. Ne5 {[%clk 0:00:29]} 1-0


[Site "https://www.chess.com"]